fUST/lending_fUST_20260410
["ID","MTS","AMOUNT","RATE_DAILY","PERIOD"]
[420233106,1775831436145,-4674.09999998,0.000156,2]
[420233108,1775831436157,-2094.96246121,0.000156,2]
[420233110,1775831436189,-2994.07694886,0.000156,2]
[420233113,1775831436222,-1004.47234941,0.000156,2]
[420233115,1775831436250,-1093.98275846,0.000156,2]
[420233118,1775831436282,-3473.66322269,0.000156,2]
[420233120,1775831436312,-348.44921524,0.000156,2]
[420233122,1775831436322,-663.82518617,0.00015773,2]
[420233124,1775831436338,-172.76542701,0.00015773,2]
[420233127,1775831436355,-267.64792624,0.00015809,2]
[420233129,1775831436371,-332.35207376,0.00015809,2]
[420233131,1775831436380,-836.59061318,0.00015962,2]
[420233132,1775831436394,-221.31682155,0.00015999,2]
[420233185,1775831438871,-278.68317845,0.00015999,2]
[420233186,1775831438884,-652.0,0.00015999,2]
[420233187,1775831438908,-3000.0,0.00016,2]
[420233188,1775831438921,-3000.0,0.0001601,2]
[420233189,1775831438932,-3000.0,0.0001602,2]
[420233190,1775831438947,-1014.88968143,0.00016021,2]
[420233191,1775831438960,-1000.0,0.00016021,2]
[420233193,1775831438971,-1000.0,0.00016021,2]
[420233194,1775831438980,-3000.0,0.0001603,2]
[420233195,1775831438998,-633.21277966,0.00016034,2]
[420233196,1775831439007,-3594.7853447,0.00016035,2]
[420233197,1775831439018,-2355.8905242,0.00016035,2]
[420233198,1775831439038,-842.0394877,0.00016035,2]
[420233199,1775831439048,-186.4589059,0.00016035,2]
[420233200,1775831439058,-3000.0,0.0001604,2]
[420233201,1775831439074,-3000.0,0.0001605,2]
[420233202,1775831439084,-3000.0,0.0001606,2]
[420233203,1775831439094,-3000.0,0.0001607,2]
[420233204,1775831439107,-3000.0,0.0001608,2]
[420233205,1775831439124,-3000.0,0.0001609,2]
[420233206,1775831439135,-3000.0,0.000161,2]
[420233207,1775831439148,-3000.0,0.0001611,2]
[420233208,1775831439167,-3000.0,0.0001612,2]
[420233209,1775831439177,-3000.0,0.0001613,2]
[420233210,1775831439207,-3000.0,0.0001614,2]
[420233211,1775831439217,-3000.0,0.0001615,2]
[420233212,1775831439245,-836.59061318,0.0001615,2]
[420233213,1775831439255,-3000.0,0.0001616,2]
[420233214,1775831439267,-3000.0,0.0001617,2]
[420233215,1775831439286,-3000.0,0.0001618,2]
[420233216,1775831439298,-3000.0,0.0001619,2]
[420233217,1775831439311,-3000.0,0.000162,2]
[420233218,1775831439324,-3000.0,0.0001621,2]
[420233219,1775831439340,-3000.0,0.0001622,2]
[420233220,1775831439351,-454.8288029,0.00016229,2]
[420233221,1775831439364,-455.5310146,0.00016229,2]
[420233222,1775831439387,-324.3145883,0.00016229,2]
[420233223,1775831439423,-162.380719,0.0001623,2]
[420233224,1775831439433,-152.79027183,0.0001623,2]
[420233225,1775831439467,-478.75725327,0.0001623,2]
[420233226,1775831439478,-1600.0178,0.0001623,2]
[420233227,1775831439488,-578.20924308,0.0001623,2]
[420233228,1775831439513,-537.6845,0.0001623,2]
[420233229,1775831439523,-2150.738,0.0001623,2]
[420233230,1775831439532,-3000.0,0.0001623,2]
[420233231,1775831439559,-3000.0,0.0001624,2]
[420233232,1775831439569,-3000.0,0.0001625,2]
[420233233,1775831439579,-3000.0,0.0001626,2]
[420233234,1775831439588,-3000.0,0.0001627,2]
[420233235,1775831439601,-3000.0,0.0001628,2]
[420233236,1775831439616,-557.5788265,0.00016285,2]
[420233237,1775831439626,-3000.0,0.0001629,2]
[420233238,1775831439637,-169.0,0.0001629,2]
[420233239,1775831439651,-3000.0,0.000163,2]
[420233240,1775831439663,-500.0,0.00016308,2]
[420233241,1775831439672,-4427.531102,0.0001631,2]
[420233242,1775831439684,-578.20924308,0.0001634,2]
[420233243,1775831439698,-210.393622,0.00016362,2]
[420233244,1775831439711,-160.0,0.00016362,2]
[420233245,1775831439721,-215.635307,0.00016362,2]
[420233246,1775831439737,-271.270614,0.00016362,2]
[420233247,1775831439752,-560.0,0.00016371,2]
[420233248,1775831439763,-3274.0,0.00016371,2]
[420233249,1775831439773,-271.210528,0.00016378,2]
[420233250,1775831439798,-599.60298507,0.00016395,2]
[420233251,1775831439807,-177.451468,0.0001642,2]
[420233252,1775831439819,-815.3432,0.00016438,2]
[420233253,1775831439839,-815.3432,0.00016438,2]
[420233254,1775831439849,-815.3432,0.00016438,2]
[420233255,1775831439860,-500.0,0.00016438,2]
[420233256,1775831439882,-500.0,0.00016438,2]
[420233257,1775831439902,-500.0,0.00016438,2]
[420233258,1775831439913,-500.0,0.00016438,2]
[420233259,1775831439929,-500.0,0.00016438,2]
[420233260,1775831439941,-500.0,0.00016438,2]
[420233261,1775831439951,-500.0,0.00016438,2]
[420233262,1775831439964,-500.0,0.00016438,2]
[420233263,1775831439980,-837.41,0.00016438,2]
[420233264,1775831439990,-500.0,0.00016438,2]
[420233265,1775831440001,-500.0,0.00016438,2]
[420233266,1775831440023,-500.0,0.00016438,2]
[420233269,1775831440033,-500.0,0.00016438,2]
[420233272,1775831440066,-500.0,0.00016438,2]
[420233273,1775831440077,-500.0,0.00016438,2]
[420233274,1775831440094,-408.81082994,0.00016438,2]
[420233275,1775831440107,-500.0,0.00016438,2]
[420233276,1775831440117,-596.92,0.00016438,2]
[420233277,1775831440128,-500.0,0.00016438,2]
[420233278,1775831440138,-553.11,0.00016438,2]
[420233279,1775831440151,-500.0,0.00016438,2]
[420233280,1775831440161,-500.0,0.00016438,2]
[420233281,1775831440170,-500.0,0.00016438,2]
[420233282,1775831440181,-500.0,0.00016438,2]
[420233283,1775831440191,-500.0,0.00016438,2]
[420233284,1775831440205,-500.0,0.00016438,2]
[420233285,1775831440215,-1756.82,0.00016438,2]
[420233286,1775831440226,-650.94,0.00016438,2]
[420233287,1775831440235,-500.0,0.00016438,2]
[420233288,1775831440247,-500.0,0.00016438,2]
[420233289,1775831440257,-3889.67,0.00016438,2]
[420233290,1775831440270,-500.0,0.00016438,2]
[420233291,1775831440283,-500.0,0.00016438,2]
[420233292,1775831440308,-500.0,0.00016438,2]
[420233293,1775831440318,-637.97,0.00016438,2]
[420233294,1775831440331,-500.0,0.00016438,2]
[420233295,1775831440356,-500.0,0.00016438,2]
[420233296,1775831440366,-564.21,0.00016438,2]
[420233297,1775831440398,-500.0,0.00016438,2]
[420233298,1775831440408,-596.26,0.00016438,2]
[420233299,1775831440422,-500.0,0.00016438,2]
[420233300,1775831440442,-756.35,0.00016438,2]
[420233301,1775831440451,-719.78,0.00016438,2]
[420233302,1775831440463,-719.51,0.00016438,2]
[420233303,1775831440475,-737.97,0.00016438,2]
[420233304,1775831440495,-633.87,0.00016438,2]
[420233305,1775831440504,-206.27055076,0.00016438,2]
[420233306,1775831440514,-500.0,0.00016438,2]
[420233307,1775831440540,-500.0,0.00016438,2]
[420233308,1775831440551,-687.11,0.00016438,2]
[420233309,1775831440561,-500.0,0.00016438,2]
[420233310,1775831440571,-500.0,0.00016438,2]
[420233312,1775831440589,-2101.29,0.00016438,2]
[420233313,1775831440600,-500.0,0.00016438,2]
[420233314,1775831440613,-2023.95,0.00016438,2]
[420233316,1775831440629,-500.0,0.00016438,2]
[420233317,1775831440641,-500.0,0.00016438,2]
[420233318,1775831440659,-500.0,0.00016438,2]
[420233319,1775831440671,-628.02,0.00016438,2]
[420233320,1775831440681,-667.29,0.00016438,2]
[420233321,1775831440691,-660.88,0.00016438,2]
[420233322,1775831440705,-930.35,0.00016438,2]
[420233323,1775831440725,-595.19,0.00016438,2]
[420233324,1775831440735,-585.19,0.00016438,2]
[420233325,1775831440746,-500.0,0.00016438,2]
[420233326,1775831440763,-500.0,0.00016438,2]
[420233327,1775831440772,-601.83,0.00016438,2]
[420233328,1775831440782,-739.23,0.00016438,2]
[420233329,1775831440802,-500.0,0.00016438,2]
[420233330,1775831440812,-647.78250982,0.00016438,2]
[420233331,1775831440822,-500.0,0.00016438,2]
[420233332,1775831440833,-500.0,0.00016438,2]
[420233333,1775831440849,-500.0,0.00016438,2]
[420233334,1775831440866,-500.0,0.00016438,2]
[420233335,1775831440876,-500.0,0.00016438,2]
[420233336,1775831440889,-659.35,0.00016438,2]
[420233337,1775831440905,-611.41,0.00016438,2]
[420233338,1775831440915,-621.78829552,0.0001645,2]
[420233339,1775831440926,-6085.645114,0.00016462,2]
[420233340,1775831440947,-644.79446246,0.00016505,2]
[420233341,1775831440956,-668.65185757,0.0001656,2]
[420233342,1775831440966,-1500.0,0.00016568,2]
[420233343,1775831440983,-179.68735687,0.00016568,2]
[420233344,1775831440997,-500.0,0.00016579,2]
[420233345,1775831441019,-693.3919763,0.00016615,2]
[420233346,1775831441037,-455.97949573,0.00016657,2]
[420233347,1775831441051,-273.38801363,0.00016657,2]
[420233348,1775831441079,-1092.45850246,0.00016657,2]
[420233349,1775831441106,-719.04747942,0.0001667,2]
[420233350,1775831441122,-5980.47046039,0.00016696,2]
[420233351,1775831441339,-5000.0,0.00016696,2]
[420233352,1775831441351,-5000.0,0.00016696,2]
[420233353,1775831441376,-5000.0,0.00016696,2]
[420233354,1775831441391,-5000.0,0.00016696,2]
[420233355,1775831441407,-815.3432,0.00016712,2]
[420233356,1775831441428,-815.3432,0.00016712,2]
[420233357,1775831441439,-815.3432,0.00016712,2]
[420233358,1775831441460,-500.0,0.00016712,2]
[420233359,1775831441499,-500.0,0.00016712,2]
[420233360,1775831441515,-500.0,0.00016712,2]
[420233361,1775831441544,-500.0,0.00016712,2]
[420233362,1775831441576,-500.0,0.00016712,2]
[420233363,1775831441586,-500.0,0.00016712,2]
[420233364,1775831441599,-500.0,0.00016712,2]
[420233365,1775831441631,-500.0,0.00016712,2]
[420233366,1775831441641,-837.41,0.00016712,2]
[420233367,1775831441651,-500.0,0.00016712,2]
[420233368,1775831441669,-500.0,0.00016712,2]
[420233369,1775831441678,-500.0,0.00016712,2]
[420233370,1775831441688,-500.0,0.00016712,2]
[420233371,1775831441707,-500.0,0.00016712,2]
[420233372,1775831441716,-500.0,0.00016712,2]
[420233373,1775831441726,-500.0,0.00016712,2]
[420233374,1775831441735,-553.11,0.00016712,2]
[420233375,1775831441766,-500.0,0.00016712,2]
[420233376,1775831441775,-500.0,0.00016712,2]
[420233377,1775831441792,-500.0,0.00016712,2]
[420233378,1775831441801,-500.0,0.00016712,2]
[420233379,1775831441819,-500.0,0.00016712,2]
[420233380,1775831441828,-500.0,0.00016712,2]
[420233381,1775831441838,-1756.82,0.00016712,2]
[420233382,1775831441848,-650.94,0.00016712,2]
[420233383,1775831441871,-500.0,0.00016712,2]
[420233384,1775831441882,-500.0,0.00016712,2]
[420233385,1775831441891,-3889.67,0.00016712,2]
[420233386,1775831441906,-500.0,0.00016712,2]
[420233387,1775831441920,-230.00932552,0.00016712,2]
[420233388,1775831441929,-500.0,0.00016712,2]
[420233389,1775831441943,-637.97,0.00016712,2]
[420233390,1775831441959,-500.0,0.00016712,2]
[420233391,1775831441970,-500.0,0.00016712,2]
[420233392,1775831441993,-564.21,0.00016712,2]
[420233393,1775831442005,-500.0,0.00016712,2]
[420233395,1775831442015,-596.26,0.00016712,2]
[420233397,1775831442029,-562.73086148,0.00016712,2]
[420233398,1775831442049,-756.35,0.00016712,2]
[420233400,1775831442059,-719.78,0.00016712,2]
[420233401,1775831442088,-719.51,0.00016712,2]
[420233402,1775831442114,-737.97,0.00016712,2]
[420233403,1775831442144,-633.87,0.00016712,2]
[420233404,1775831442158,-500.0,0.00016712,2]
[420233405,1775831442185,-500.0,0.00016712,2]
[420233406,1775831442212,-687.11,0.00016712,2]
[420233407,1775831442243,-256.47102852,0.00016712,2]
[420233408,1775831442253,-500.0,0.00016712,2]
[420233409,1775831442264,-2101.29,0.00016712,2]
[420233410,1775831442279,-500.0,0.00016712,2]
[420233411,1775831442290,-2023.95,0.00016712,2]
[420233412,1775831442299,-500.0,0.00016712,2]
[420233413,1775831442318,-500.0,0.00016712,2]
[420233414,1775831442330,-500.0,0.00016712,2]
[420233415,1775831442340,-628.02,0.00016712,2]
[420233416,1775831442349,-667.29,0.00016712,2]
[420233417,1775831442371,-660.88,0.00016712,2]
[420233418,1775831442384,-930.35,0.00016712,2]
[420233419,1775831442393,-595.19,0.00016712,2]
[420233420,1775831442416,-585.19,0.00016712,2]
[420233421,1775831442425,-500.0,0.00016712,2]
[420233422,1775831442437,-500.0,0.00016712,2]
[420233423,1775831442458,-601.83,0.00016712,2]
[420233424,1775831442468,-739.23,0.00016712,2]
[420233425,1775831442480,-500.0,0.00016712,2]
[420233426,1775831442507,-500.0,0.00016712,2]
[420233427,1775831442520,-500.0,0.00016712,2]
[420233428,1775831442529,-500.0,0.00016712,2]
[420233429,1775831442555,-500.0,0.00016712,2]
[420233430,1775831442570,-500.0,0.00016712,2]
[420233431,1775831442584,-659.35,0.00016712,2]
[420233432,1775831442647,-611.41,0.00016712,2]
[420233433,1775831442721,-556.53656845,0.00016725,2]
[420233435,1775831442733,-3190.1284374,0.00016747,2]
[420233436,1775831442742,-2230.315306,0.00016778,2]
[420233438,1775831442767,-500.0,0.00016794,2]
[420233441,1775831442779,-166.8050278,0.00016794,2]
[420233444,1775831442794,-500.0,0.00016794,2]
[420233448,1775831442805,-1000.0,0.00016856,2]
[420233451,1775831442818,-2027.72,0.00016858,3]
[420233453,1775831442835,-1013.86,0.00016858,3]
[420233456,1775831442844,-506.92,0.00016858,3]
[420233458,1775831442855,-815.3432,0.00016986,2]
[420233460,1775831442866,-815.3432,0.00016986,2]
[420233461,1775831442879,-815.3432,0.00016986,2]
[420233462,1775831442888,-193.16683995,0.00016986,2]
[420233463,1775831442899,-500.0,0.00016986,2]
[420233464,1775831442914,-500.0,0.00016986,2]
[420233465,1775831442923,-500.0,0.00016986,2]
[420233466,1775831442933,-500.0,0.00016986,2]
[420233467,1775831442948,-500.0,0.00016986,2]
[420233468,1775831442960,-500.0,0.00016986,2]
[420233469,1775831442971,-500.0,0.00016986,2]
[420233470,1775831442982,-837.41,0.00016986,2]
[420233471,1775831443002,-500.0,0.00016986,2]
[420233472,1775831443031,-500.0,0.00016986,2]
[420233473,1775831443042,-500.0,0.00016986,2]
[420233475,1775831443056,-500.0,0.00016986,2]
[420233476,1775831443095,-500.0,0.00016986,2]
[420233478,1775831443107,-500.0,0.00016986,2]
[420233479,1775831443124,-500.0,0.00016986,2]
[420233481,1775831443135,-553.11,0.00016986,2]
[420233483,1775831443156,-340.23963628,0.00016986,2]
[420233485,1775831443165,-500.0,0.00016986,2]
[420233486,1775831443178,-500.0,0.00016986,2]
[420233487,1775831443196,-500.0,0.00016986,2]
[420233488,1775831443205,-500.0,0.00016986,2]
[420233489,1775831443216,-500.0,0.00016986,2]
[420233490,1775831443227,-1756.82,0.00016986,2]
[420233491,1775831443242,-650.94,0.00016986,2]
[420233492,1775831443252,-500.0,0.00016986,2]
[420233493,1775831443264,-500.0,0.00016986,2]
[420233494,1775831443280,-3889.67,0.00016986,2]
[420233495,1775831443292,-500.0,0.00016986,2]
[420233496,1775831443308,-500.0,0.00016986,2]
[420233497,1775831443320,-637.97,0.00016986,2]
[420233498,1775831443329,-500.0,0.00016986,2]
[420233499,1775831443343,-500.0,0.00016986,2]
[420233500,1775831443356,-564.21,0.00016986,2]
[420233501,1775831443366,-500.0,0.00016986,2]
[420233502,1775831443375,-596.26,0.00016986,2]
[420233503,1775831443388,-756.35,0.00016986,2]
[420233504,1775831443401,-719.78,0.00016986,2]
[420233505,1775831443413,-719.51,0.00016986,2]
[420233506,1775831443432,-737.97,0.00016986,2]
[420233507,1775831443443,-633.87,0.00016986,2]
[420233508,1775831443454,-500.0,0.00016986,2]
[420233509,1775831443468,-500.0,0.00016986,2]
[420233510,1775831443483,-687.11,0.00016986,2]
[420233511,1775831443493,-500.0,0.00016986,2]
[420233512,1775831443510,-2101.29,0.00016986,2]
[420233513,1775831443532,-500.0,0.00016986,2]
[420233514,1775831443544,-2023.95,0.00016986,2]
[420233515,1775831443564,-500.0,0.00016986,2]
[420233516,1775831443574,-500.0,0.00016986,2]
[420233517,1775831443583,-500.0,0.00016986,2]
[420233518,1775831443593,-628.02,0.00016986,2]
[420233519,1775831443620,-667.29,0.00016986,2]
[420233520,1775831443629,-660.88,0.00016986,2]
[420233521,1775831443639,-930.35,0.00016986,2]
[420233522,1775831443651,-595.19,0.00016986,2]
[420233523,1775831443666,-585.19,0.00016986,2]
[420233524,1775831443676,-500.0,0.00016986,2]
[420233525,1775831443686,-500.0,0.00016986,2]
[420233526,1775831443698,-601.83,0.00016986,2]
[420233527,1775831443711,-739.23,0.00016986,2]
[420233528,1775831443721,-500.0,0.00016986,2]
[420233529,1775831443730,-500.0,0.00016986,2]
[420233530,1775831443745,-500.0,0.00016986,2]
[420233531,1775831443754,-500.0,0.00016986,2]
[420233532,1775831443765,-500.0,0.00016986,2]
[420233533,1775831443779,-500.0,0.00016986,2]
[420233534,1775831443791,-659.35,0.00016986,2]
[420233535,1775831443802,-611.41,0.00016986,2]
[420233536,1775831443814,-252.16537216,0.00017,2]
[420233537,1775831443831,-507.85662908,0.00017,2]
[420233538,1775831443854,-196.3909716,0.00017057,2]
[420233539,1775831443864,-196.196518,0.00017057,2]
[420233540,1775831443874,-657.60285578,0.00017116,2]
[420233541,1775831443895,-1000.0,0.00017127,2]
[420233542,1775831443906,-294.048146,0.0001718,2]
[420233543,1775831443917,-416.61359989,0.00017224,2]
[420233544,1775831443945,-177.451468,0.0001724,2]
[420233545,1775831443956,-524.99540856,0.00017251,2]
[420233546,1775831443975,-1223.0148,0.0001726,2]
[420233547,1775831444007,-1223.0148,0.0001726,2]
[420233548,1775831444026,-500.0,0.0001726,2]
[420233549,1775831444063,-500.0,0.0001726,2]
[420233550,1775831444074,-500.0,0.0001726,2]
[420233551,1775831444085,-500.0,0.0001726,2]
[420233552,1775831444105,-500.0,0.0001726,2]
[420233553,1775831444115,-500.0,0.0001726,2]
[420233554,1775831444125,-500.0,0.0001726,2]
[420233555,1775831444147,-837.41,0.0001726,2]
[420233556,1775831444157,-582.16944346,0.0001726,2]
[420233557,1775831444173,-500.0,0.0001726,2]
[420233558,1775831444193,-500.0,0.0001726,2]
[420233559,1775831444206,-633.14878824,0.0001726,2]
[420233560,1775831444216,-500.0,0.0001726,2]
[420233561,1775831444237,-500.0,0.0001726,2]
[420233562,1775831444260,-500.0,0.0001726,2]
[420233563,1775831444272,-553.11,0.0001726,2]
[420233564,1775831444282,-288.49506625,0.0001726,2]
[420233565,1775831444301,-398.04238757,0.0001726,2]
[420233566,1775831444318,-500.0,0.0001726,2]
[420233567,1775831444334,-500.0,0.0001726,2]
[420233568,1775831444366,-500.0,0.0001726,2]
[420233569,1775831444376,-1756.82,0.0001726,2]
[420233570,1775831444412,-650.94,0.0001726,2]
[420233571,1775831444422,-500.0,0.0001726,2]
[420233572,1775831444460,-500.0,0.0001726,2]
[420233573,1775831444483,-3889.67,0.0001726,2]
[420233574,1775831444519,-500.0,0.0001726,2]
[420233575,1775831444531,-500.0,0.0001726,2]
[420233576,1775831444555,-637.97,0.0001726,2]
[420233577,1775831444566,-500.0,0.0001726,2]
[420233578,1775831444584,-500.0,0.0001726,2]
[420233579,1775831444598,-564.21,0.0001726,2]
[420233580,1775831444611,-500.0,0.0001726,2]
[420233581,1775831444624,-596.26,0.0001726,2]
[420233582,1775831444638,-756.35,0.0001726,2]
[420233583,1775831444652,-719.78,0.0001726,2]
[420233584,1775831444662,-719.51,0.0001726,2]
[420233585,1775831444676,-737.97,0.0001726,2]
[420233586,1775831444690,-633.87,0.0001726,2]
[420233587,1775831444707,-500.0,0.0001726,2]
[420233588,1775831444725,-500.0,0.0001726,2]
[420233589,1775831444735,-687.11,0.0001726,2]
[420233590,1775831444758,-500.0,0.0001726,2]
[420233591,1775831444770,-2101.29,0.0001726,2]
[420233592,1775831444779,-500.0,0.0001726,2]
[420233593,1775831444803,-2023.95,0.0001726,2]
[420233594,1775831444813,-500.0,0.0001726,2]
[420233595,1775831444823,-500.0,0.0001726,2]
[420233596,1775831444837,-500.0,0.0001726,2]
[420233597,1775831444849,-628.02,0.0001726,2]
[420233598,1775831444859,-667.29,0.0001726,2]
[420233599,1775831444869,-660.88,0.0001726,2]
[420233600,1775831444884,-930.35,0.0001726,2]
[420233601,1775831444897,-595.19,0.0001726,2]
[420233602,1775831444909,-585.19,0.0001726,2]
[420233603,1775831444928,-411.23478418,0.0001726,2]
[420233604,1775831444950,-500.0,0.0001726,2]
[420233605,1775831444962,-601.83,0.0001726,2]
[420233606,1775831444972,-739.23,0.0001726,2]
[420233607,1775831444988,-500.0,0.0001726,2]
[420233608,1775831445002,-500.0,0.0001726,2]
[420233609,1775831445013,-500.0,0.0001726,2]
[420233610,1775831445024,-500.0,0.0001726,2]
[420233611,1775831445050,-500.0,0.0001726,2]
[420233612,1775831445061,-500.0,0.0001726,2]
[420233613,1775831445083,-659.35,0.0001726,2]
[420233614,1775831445107,-611.41,0.0001726,2]
[420233615,1775831445123,-169.0,0.0001729,2]
[420233616,1775831445134,-2312.83697232,0.00017326,2]
[420233617,1775831445166,-505.07791126,0.00017342,2]
[420233618,1775831445177,-151.0,0.00017386,2]
[420233619,1775831445192,-720.0,0.0001739,2]
[420233620,1775831445233,-820.0,0.000174,2]
[420233622,1775831445244,-820.0,0.000174,2]
[420233624,1775831445276,-820.0,0.000174,2]
[420233625,1775831445299,-322.0,0.000174,2]
[420233627,1775831445319,-536.73165678,0.00017407,2]
[420233629,1775831445334,-500.0,0.00017407,2]
[420233630,1775831445345,-530.97867214,0.00017407,2]
[420233632,1775831445371,-500.0,0.00017407,2]
[420233633,1775831445385,-502.1341792,0.00017407,2]
[420233635,1775831445395,-530.97511026,0.00017407,2]
[420233636,1775831445404,-163.58527244,0.00017407,2]
[420233637,1775831445425,-500.0,0.00017407,2]
[420233638,1775831445435,-500.0,0.00017407,2]
[420233639,1775831445445,-500.0,0.00017407,2]
[420233640,1775831445455,-500.0,0.00017407,2]
[420233641,1775831445468,-500.0,0.00017407,2]
[420233642,1775831445478,-501.25981471,0.00017407,2]
[420233643,1775831445491,-169.26370912,0.00017407,2]
[420233644,1775831445501,-500.0,0.00017407,2]
[420233645,1775831445511,-820.0,0.00017458,2]
[420233646,1775831445523,-38000.0,0.00017465,3]
[420233647,1775831445533,-500.0,0.00017473,2]
[420233648,1775831445546,-508.1198218,0.00017473,2]
[420233649,1775831445556,-38000.0,0.00017474,3]
[420233650,1775831445567,-38000.0,0.00017482,3]
[420233651,1775831445581,-250.0,0.0001749,2]
[420233652,1775831445591,-250.0,0.0001749,2]
[420233653,1775831445601,-250.0,0.0001749,2]
[420233654,1775831445614,-250.0,0.0001749,2]
[420233656,1775831445638,-38000.0,0.00017491,3]
[420233658,1775831445649,-1030.7,0.000175,2]
[420233659,1775831445672,-38000.0,0.000175,3]
[420233660,1775831445681,-1223.0148,0.00017534,2]
[420233661,1775831445693,-1223.0148,0.00017534,2]
[420233663,1775831445717,-500.0,0.00017534,2]
[420233666,1775831445726,-500.0,0.00017534,2]
[420233668,1775831445740,-500.0,0.00017534,2]
[420233669,1775831445755,-500.0,0.00017534,2]
[420233670,1775831445780,-500.0,0.00017534,2]
[420233671,1775831445790,-500.0,0.00017534,2]
[420233672,1775831445806,-500.0,0.00017534,2]
[420233673,1775831445819,-837.41,0.00017534,2]
[420233674,1775831445835,-500.0,0.00017534,2]
[420233676,1775831445851,-500.0,0.00017534,2]
[420233678,1775831445863,-438.92301236,0.00017534,2]
[420233679,1775831445882,-1753.93635741,0.00017534,2]
[420233680,1775831445899,-500.0,0.00017534,2]
[420233681,1775831445917,-500.0,0.00017534,2]
[420233682,1775831445945,-259.32158922,0.00017534,2]
[420233685,1775831445963,-553.11,0.00017534,2]
[420233688,1775831445979,-500.0,0.00017534,2]
[420233689,1775831445991,-500.0,0.00017534,2]
[420233690,1775831446005,-633.31250762,0.00017534,2]
[420233691,1775831446036,-500.0,0.00017534,2]
[420233693,1775831446046,-2530.71678044,0.00017534,2]
[420233694,1775831446062,-1756.82,0.00017534,2]
[420233695,1775831446094,-650.94,0.00017534,2]
[420233696,1775831446110,-500.0,0.00017534,2]
[420233697,1775831446127,-500.0,0.00017534,2]
[420233698,1775831446137,-3889.67,0.00017534,2]
[420233699,1775831446149,-500.0,0.00017534,2]
[420233700,1775831446163,-500.0,0.00017534,2]
[420233701,1775831446187,-637.97,0.00017534,2]
[420233703,1775831446197,-500.0,0.00017534,2]
[420233704,1775831446208,-500.0,0.00017534,2]
[420233706,1775831446243,-564.21,0.00017534,2]
[420233707,1775831446253,-500.0,0.00017534,2]
[420233709,1775831446263,-596.26,0.00017534,2]
[420233710,1775831446280,-756.35,0.00017534,2]
[420233711,1775831446295,-719.78,0.00017534,2]
[420233712,1775831446305,-719.51,0.00017534,2]
[420233713,1775831446314,-737.97,0.00017534,2]
[420233714,1775831446330,-633.87,0.00017534,2]
[420233715,1775831446341,-500.0,0.00017534,2]
[420233716,1775831446350,-500.0,0.00017534,2]
[420233717,1775831446362,-687.11,0.00017534,2]
[420233718,1775831446385,-500.0,0.00017534,2]
[420233719,1775831446394,-2101.29,0.00017534,2]
[420233720,1775831446404,-500.0,0.00017534,2]
[420233721,1775831446422,-2023.95,0.00017534,2]
[420233722,1775831446435,-500.0,0.00017534,2]
[420233723,1775831446444,-500.0,0.00017534,2]
[420233724,1775831446463,-500.0,0.00017534,2]